[Event "Titled Tuesday Blitz May 30 Late 2023"]
[White "ElDivis"]
[Black "Panesar Vedant"]
[BlackFideId "35033018"]
[WhiteElo "2564"]
[BlackElo "2347"]
[Result "0-1"]
[Round "08"]
[TimeControl "180+2"]
[Date "2023.05.31"]
[WhiteClock "0:00:04"]
[BlackClock "0:00:21"]

1. e4 {[%clk 0:02:53]}  e5 {[%clk 0:02:58]} 2. Nf3 {[%clk 0:02:53]}  Nc6 {[%clk 0:02:58]} 3. Bc4 {[%clk 0:02:53]}  Bc5 {[%clk 0:02:57]} 4. d3 {[%clk 0:02:52]}  Nf6 {[%clk 0:02:55]} 5. Nc3 {[%clk 0:02:52]}  a6 {[%clk 0:02:54]} 6. Nd5 {[%clk 0:02:50]}  h6 {[%clk 0:02:50]} 7. Be3 {[%clk 0:02:43]}  Bxe3 {[%clk 0:02:47]} 8. Nxe3 {[%clk 0:02:38]}  O-O {[%clk 0:02:46]} 9. g4 {[%clk 0:02:29]}  d6 {[%clk 0:02:15]} 10. Rg1 {[%clk 0:02:21]}  Be6 {[%clk 0:02:09]} 11. g5 {[%clk 0:02:10]}  hxg5 {[%clk 0:01:50]} 12. Nxg5 {[%clk 0:01:57]}  Bxc4 {[%clk 0:01:42]} 13. dxc4 {[%clk 0:01:49]}  Ne7 {[%clk 0:01:36]} 14. Qf3 {[%clk 0:01:42]}  Ng6 {[%clk 0:01:33]} 15. O-O-O {[%clk 0:01:03]}  b5 {[%clk 0:01:27]} 16. Nd5 {[%clk 0:00:53]}  bxc4 {[%clk 0:01:17]} 17. Qh3 {[%clk 0:00:46]}  Re8 {[%clk 0:01:17]} 18. Rg3 {[%clk 0:00:29]}  c6 {[%clk 0:01:08]} 19. Nxf7 {[%clk 0:00:21]}  Kxf7 {[%clk 0:01:03]} 20. Rdg1 {[%clk 0:00:21]}  cxd5 {[%clk 0:00:49]} 21. Rxg6 {[%clk 0:00:21]}  Rg8 {[%clk 0:00:50]} 22. Qg3 {[%clk 0:00:16]}  Qf8 {[%clk 0:00:43]} 23. exd5 {[%clk 0:00:15]}  Ra7 {[%clk 0:00:44]} 24. f4 {[%clk 0:00:15]}  Re7 {[%clk 0:00:41]} 25. fxe5 {[%clk 0:00:14]}  Rxe5 {[%clk 0:00:41]} 26. Qc3 {[%clk 0:00:14]}  Qe7 {[%clk 0:00:36]} 27. a4 {[%clk 0:00:12]}  Re3 {[%clk 0:00:31]} 28. Qb4 {[%clk 0:00:10]}  c3 {[%clk 0:00:26]} 29. bxc3 {[%clk 0:00:07]}  Re1+ {[%clk 0:00:22]} 30. Kb2 {[%clk 0:00:08]}  Rxg1 {[%clk 0:00:22]} 31. Rxg1 {[%clk 0:00:08]}  Qc7 {[%clk 0:00:21]} 32. Kc1 {[%clk 0:00:07]}  Rb8 {[%clk 0:00:20]} 33. Qa3 {[%clk 0:00:08]}  Qb6 {[%clk 0:00:20]} 34. Rg3 {[%clk 0:00:06]}  Qb1+ {[%clk 0:00:20]} 35. Kd2 {[%clk 0:00:05]}  Ne4+ {[%clk 0:00:20]} 36. Kd3 {[%clk 0:00:05]}  Nxg3 {[%clk 0:00:21]} 37. hxg3 {[%clk 0:00:04]}  Qf1+ {[%clk 0:00:22]} 38. Kd2 {[%clk 0:00:04]}  Qf2+ {[%clk 0:00:21]} 0-1


[Site "https://www.chess.com"]

[Event "Titled Tuesday Blitz May 30 Late 2023"]
[White "Matinian, Nikita"]
[Black "Moral Garcia, Serafin"]
[WhiteFideId "24129100"]
[BlackFideId "2201925"]
[WhiteElo "2422"]
[BlackElo "2274"]
[Result "0-1"]
[Round "08"]
[TimeControl "180+2"]
[Date "2023.05.31"]
[WhiteClock "0:00:02"]
[BlackClock "0:00:18"]

1. e4 {[%clk 0:03:00]}  e5 {[%clk 0:02:56]} 2. Nf3 {[%clk 0:03:00]}  Nf6 {[%clk 0:02:56]} 3. Nxe5 {[%clk 0:02:59]}  d6 {[%clk 0:02:56]} 4. Nf3 {[%clk 0:02:59]}  Nxe4 {[%clk 0:02:57]} 5. Qe2 {[%clk 0:02:59]}  Qe7 {[%clk 0:02:57]} 6. d3 {[%clk 0:03:00]}  Nf6 {[%clk 0:02:57]} 7. Bg5 {[%clk 0:03:00]}  Qxe2+ {[%clk 0:02:56]} 8. Bxe2 {[%clk 0:03:01]}  Be7 {[%clk 0:02:57]} 9. Nc3 {[%clk 0:03:01]}  c6 {[%clk 0:02:54]} 10. O-O-O {[%clk 0:03:00]}  d5 {[%clk 0:02:54]} 11. Rde1 {[%clk 0:03:00]}  Be6 {[%clk 0:02:54]} 12. Nd4 {[%clk 0:02:58]}  O-O {[%clk 0:02:51]} 13. f4 {[%clk 0:02:37]}  Re8 {[%clk 0:02:29]} 14. Nxe6 {[%clk 0:02:31]}  fxe6 {[%clk 0:02:28]} 15. Bf3 {[%clk 0:02:27]}  Bf8 {[%clk 0:02:23]} 16. Re2 {[%clk 0:02:27]}  Nbd7 {[%clk 0:02:16]} 17. Rhe1 {[%clk 0:02:26]}  Kf7 {[%clk 0:02:15]} 18. Nd1 {[%clk 0:02:21]}  Bd6 {[%clk 0:02:13]} 19. g3 {[%clk 0:02:17]}  e5 {[%clk 0:02:08]} 20. Bxf6 {[%clk 0:02:07]}  Kxf6 {[%clk 0:02:05]} 21. Bg4 {[%clk 0:02:06]}  Rad8 {[%clk 0:01:27]} 22. Bxd7 {[%clk 0:02:00]}  Rxd7 {[%clk 0:01:26]} 23. fxe5+ {[%clk 0:01:42]}  Rxe5 {[%clk 0:01:25]} 24. Ne3 {[%clk 0:01:37]}  Kg6 {[%clk 0:01:14]} 25. Kd2 {[%clk 0:01:24]}  Rde7 {[%clk 0:01:09]} 26. c3 {[%clk 0:01:25]}  Re8 {[%clk 0:01:01]} 27. a4 {[%clk 0:01:24]}  Rf8 {[%clk 0:00:50]} 28. Ng2 {[%clk 0:01:16]}  Rxe2+ {[%clk 0:00:48]} 29. Rxe2 {[%clk 0:01:17]}  Kf7 {[%clk 0:00:47]} 30. Rf2+ {[%clk 0:01:08]}  Ke7 {[%clk 0:00:46]} 31. Rxf8 {[%clk 0:01:08]}  Kxf8 {[%clk 0:00:46]} 32. Ke3 {[%clk 0:01:09]}  Kf7 {[%clk 0:00:46]} 33. Kf3 {[%clk 0:01:07]}  Ke6 {[%clk 0:00:46]} 34. h4 {[%clk 0:01:05]}  a6 {[%clk 0:00:41]} 35. g4 {[%clk 0:01:05]}  b5 {[%clk 0:00:39]} 36. axb5 {[%clk 0:01:05]}  axb5 {[%clk 0:00:39]} 37. Ne3 {[%clk 0:00:58]}  g6 {[%clk 0:00:37]} 38. Nc2 {[%clk 0:00:58]}  Bc5 {[%clk 0:00:35]} 39. d4 {[%clk 0:00:56]}  Be7 {[%clk 0:00:33]} 40. g5 {[%clk 0:00:51]}  Kf5 {[%clk 0:00:29]} 41. Ne3+ {[%clk 0:00:50]}  Ke6 {[%clk 0:00:29]} 42. b4 {[%clk 0:00:50]}  Bf8 {[%clk 0:00:24]} 43. Ng4 {[%clk 0:00:50]}  Bd6 {[%clk 0:00:21]} 44. Ne3 {[%clk 0:00:38]}  Bf8 {[%clk 0:00:19]} 45. Nf1 {[%clk 0:00:35]}  h5 {[%clk 0:00:19]} 46. Ne3 {[%clk 0:00:25]}  Bd6 {[%clk 0:00:19]} 47. Ng2 {[%clk 0:00:26]}  Bc7 {[%clk 0:00:19]} 48. Ne1 {[%clk 0:00:25]}  Bd6 {[%clk 0:00:19]} 49. Nd3 {[%clk 0:00:25]}  Kf5 {[%clk 0:00:20]} 50. Nc1 {[%clk 0:00:22]}  Ke6 {[%clk 0:00:20]} 51. Nb3 {[%clk 0:00:23]}  Bc7 {[%clk 0:00:19]} 52. Nc5+ {[%clk 0:00:22]}  Kf5 {[%clk 0:00:19]} 53. Nd7 {[%clk 0:00:17]}  Bf4 {[%clk 0:00:19]} 54. Nf6 {[%clk 0:00:10]}  Bd2 {[%clk 0:00:19]} 55. Nd7 {[%clk 0:00:04]}  Bxc3 {[%clk 0:00:19]} 56. Ne5 {[%clk 0:00:04]}  Bxb4 {[%clk 0:00:19]} 57. Nxc6 {[%clk 0:00:05]}  Bd6 {[%clk 0:00:19]} 58. Na7 {[%clk 0:00:03]}  b4 {[%clk 0:00:19]} 59. Nb5 {[%clk 0:00:04]}  Be7 {[%clk 0:00:18]} 60. Nc7 {[%clk 0:00:03]}  b3 {[%clk 0:00:18]} 61. Nxd5 {[%clk 0:00:04]}  b2 {[%clk 0:00:19]} 62. Nc3 {[%clk 0:00:04]}  Bb4 {[%clk 0:00:19]} 63. Nb1 {[%clk 0:00:04]}  Be1 {[%clk 0:00:19]} 64. d5 {[%clk 0:00:03]}  Bxh4 {[%clk 0:00:19]} 65. Nc3 {[%clk 0:00:02]}  Bxg5 {[%clk 0:00:19]} 66. d6 {[%clk 0:00:02]}  Ke6 {[%clk 0:00:18]} 0-1


[Site "https://www.chess.com"]

[Event "Titled Tuesday Blitz May 30 Late 2023"]
[White "Bok, Benjamin"]
[Black "Jimenez Almeida, Luis David"]
[WhiteFideId "1017063"]
[BlackFideId "22242244"]
[WhiteElo "2657"]
[BlackElo "2245"]
[Result "1-0"]
[Round "08"]
[TimeControl "180+2"]
[Date "2023.05.31"]
[WhiteClock "0:01:23"]
[BlackClock "0:00:27"]

1. d4 {[%clk 0:03:00]}  g6 {[%clk 0:02:59]} 2. e4 {[%clk 0:02:58]}  Bg7 {[%clk 0:02:59]} 3. Nf3 {[%clk 0:02:58]}  c5 {[%clk 0:02:59]} 4. d5 {[%clk 0:02:53]}  d6 {[%clk 0:02:58]} 5. Bc4 {[%clk 0:02:49]}  Nf6 {[%clk 0:02:55]} 6. Nc3 {[%clk 0:02:49]}  O-O {[%clk 0:02:54]} 7. O-O {[%clk 0:02:48]}  Na6 {[%clk 0:02:47]} 8. h3 {[%clk 0:02:46]}  Nc7 {[%clk 0:02:47]} 9. Re1 {[%clk 0:02:46]}  a6 {[%clk 0:02:45]} 10. a4 {[%clk 0:02:46]}  Nd7 {[%clk 0:02:38]} 11. Bf4 {[%clk 0:02:44]}  Rb8 {[%clk 0:02:29]} 12. a5 {[%clk 0:02:30]}  b5 {[%clk 0:02:28]} 13. axb6 {[%clk 0:02:31]}  Rxb6 {[%clk 0:02:27]} 14. Qc1 {[%clk 0:02:11]}  Nb5 {[%clk 0:02:21]} 15. Na4 {[%clk 0:01:44]}  Rb8 {[%clk 0:02:20]} 16. Bh6 {[%clk 0:01:43]}  Nf6 {[%clk 0:01:43]} 17. e5 {[%clk 0:01:38]}  dxe5 {[%clk 0:01:40]} 18. Nxe5 {[%clk 0:01:38]}  Nd4 {[%clk 0:01:32]} 19. Bxg7 {[%clk 0:01:34]}  Kxg7 {[%clk 0:01:32]} 20. c3 {[%clk 0:01:29]}  Nb3 {[%clk 0:01:00]} 21. Bxb3 {[%clk 0:01:29]}  Rxb3 {[%clk 0:01:01]} 22. Nxc5 {[%clk 0:01:30]}  Rb5 {[%clk 0:00:55]} 23. b4 {[%clk 0:01:30]}  a5 {[%clk 0:00:40]} 24. c4 {[%clk 0:01:26]}  Rxb4 {[%clk 0:00:33]} 25. Nc6 {[%clk 0:01:26]}  Qd6 {[%clk 0:00:34]} 26. Nxb4 {[%clk 0:01:27]}  Qxc5 {[%clk 0:00:27]} 27. Nc6 {[%clk 0:01:24]}  e6 {[%clk 0:00:26]} 28. Rxa5 {[%clk 0:01:23]}  Qxc6 {[%clk 0:00:27]} 29. dxc6 {[%clk 0:01:23]} 1-0


[Site "https://www.chess.com"]

[Event "Titled Tuesday Blitz May 30 Late 2023"]
[White "Gorovets, Andrey"]
[Black "Kleiman, Jake"]
[WhiteFideId "13504037"]
[BlackFideId "2020041"]
[WhiteElo "2459"]
[BlackElo "2597"]
[Result "1-0"]
[Round "08"]
[TimeControl "180+2"]
[Date "2023.05.31"]
[WhiteClock "0:01:43"]
[BlackClock "0:00:16"]

1. Nf3 {[%clk 0:03:00]}  Nf6 {[%clk 0:03:00]} 2. g3 {[%clk 0:03:00]}  e6 {[%clk 0:03:01]} 3. Bg2 {[%clk 0:03:00]}  d5 {[%clk 0:03:01]} 4. O-O {[%clk 0:03:00]}  b5 {[%clk 0:03:02]} 5. d3 {[%clk 0:02:58]}  Be7 {[%clk 0:03:01]} 6. c4 {[%clk 0:02:58]}  bxc4 {[%clk 0:02:56]} 7. dxc4 {[%clk 0:02:59]}  c6 {[%clk 0:02:57]} 8. Nc3 {[%clk 0:02:53]}  O-O {[%clk 0:02:56]} 9. b3 {[%clk 0:02:52]}  Bb7 {[%clk 0:02:53]} 10. Qc2 {[%clk 0:02:47]}  Nbd7 {[%clk 0:02:27]} 11. Rd1 {[%clk 0:02:44]}  Qc8 {[%clk 0:02:18]} 12. Bf4 {[%clk 0:02:31]}  dxc4 {[%clk 0:02:06]} 13. bxc4 {[%clk 0:02:28]}  a6 {[%clk 0:01:58]} 14. Rab1 {[%clk 0:02:24]}  c5 {[%clk 0:01:59]} 15. Rxd7 {[%clk 0:02:11]}  Nxd7 {[%clk 0:01:03]} 16. Rxb7 {[%clk 0:02:10]}  Qxb7 {[%clk 0:00:29]} 17. Ng5 {[%clk 0:02:10]}  Qxg2+ {[%clk 0:00:30]} 18. Kxg2 {[%clk 0:02:09]}  Bxg5 {[%clk 0:00:30]} 19. Bxg5 {[%clk 0:02:10]}  Rab8 {[%clk 0:00:27]} 20. Qa4 {[%clk 0:02:06]}  Ne5 {[%clk 0:00:23]} 21. Qxa6 {[%clk 0:01:54]}  Rb4 {[%clk 0:00:21]} 22. Be7 {[%clk 0:01:43]}  Re8 {[%clk 0:00:16]} 23. Bd6 {[%clk 0:01:43]} 1-0


[Site "https://www.chess.com"]

[Event "Titled Tuesday Blitz May 30 Late 2023"]
[White "Jarovinsky, Alexey"]
[Black "Hossain, Enamul"]
[WhiteFideId "14115131"]
[BlackFideId "10200649"]
[WhiteElo "2446"]
[BlackElo "2433"]
[Result "1-0"]
[Round "08"]
[TimeControl "180+2"]
[Date "2023.05.31"]
[WhiteClock "0:00:19"]
[BlackClock "0:00:01"]

1. Nc3 {[%clk 0:03:00]}  d5 {[%clk 0:02:57]} 2. e4 {[%clk 0:02:50]}  dxe4 {[%clk 0:02:56]} 3. Nxe4 {[%clk 0:02:51]}  Bf5 {[%clk 0:02:45]} 4. Qf3 {[%clk 0:02:50]}  Bg6 {[%clk 0:02:38]} 5. h4 {[%clk 0:02:45]}  Nc6 {[%clk 0:02:34]} 6. Bb5 {[%clk 0:02:43]}  e6 {[%clk 0:02:18]} 7. h5 {[%clk 0:02:35]}  Bxe4 {[%clk 0:02:15]} 8. Qxe4 {[%clk 0:02:36]}  Qd5 {[%clk 0:02:15]} 9. Qxd5 {[%clk 0:02:36]}  exd5 {[%clk 0:02:16]} 10. Nf3 {[%clk 0:02:31]}  h6 {[%clk 0:02:12]} 11. O-O {[%clk 0:02:26]}  Bd6 {[%clk 0:02:07]} 12. Re1+ {[%clk 0:02:23]}  Ne7 {[%clk 0:02:07]} 13. d4 {[%clk 0:02:14]}  O-O-O {[%clk 0:02:05]} 14. c3 {[%clk 0:02:12]}  a6 {[%clk 0:01:52]} 15. Bd3 {[%clk 0:02:12]}  Rde8 {[%clk 0:01:50]} 16. Bd2 {[%clk 0:02:11]}  Nd8 {[%clk 0:01:47]} 17. Nh4 {[%clk 0:02:11]}  Ne6 {[%clk 0:01:44]} 18. g3 {[%clk 0:02:03]}  c6 {[%clk 0:01:40]} 19. Re2 {[%clk 0:02:02]}  Ng5 {[%clk 0:01:04]} 20. Rae1 {[%clk 0:01:58]}  Kd8 {[%clk 0:01:02]} 21. f4 {[%clk 0:01:46]}  Nh7 {[%clk 0:00:49]} 22. Bxh7 {[%clk 0:01:37]}  Rxh7 {[%clk 0:00:49]} 23. Nf5 {[%clk 0:01:38]}  Nxf5 {[%clk 0:00:45]} 24. Rxe8+ {[%clk 0:01:37]}  Kd7 {[%clk 0:00:45]} 25. Kg2 {[%clk 0:01:32]}  g6 {[%clk 0:00:40]} 26. hxg6 {[%clk 0:01:27]}  fxg6 {[%clk 0:00:40]} 27. Rg8 {[%clk 0:01:13]}  Ne7 {[%clk 0:00:36]} 28. Rf8 {[%clk 0:01:04]}  h5 {[%clk 0:00:34]} 29. Rf6 {[%clk 0:01:01]}  Rg7 {[%clk 0:00:31]} 30. Ree6 {[%clk 0:00:59]}  Bc7 {[%clk 0:00:28]} 31. Kh3 {[%clk 0:00:57]}  Bd8 {[%clk 0:00:26]} 32. a4 {[%clk 0:00:47]}  Bc7 {[%clk 0:00:24]} 33. b3 {[%clk 0:00:46]}  Ba5 {[%clk 0:00:21]} 34. Be1 {[%clk 0:00:41]}  Bd8 {[%clk 0:00:20]} 35. Kg2 {[%clk 0:00:34]}  Rh7 {[%clk 0:00:19]} 36. Kf3 {[%clk 0:00:31]}  Rg7 {[%clk 0:00:16]} 37. Kg2 {[%clk 0:00:28]}  Rh7 {[%clk 0:00:16]} 38. Kh3 {[%clk 0:00:28]}  Rg7 {[%clk 0:00:14]} 39. c4 {[%clk 0:00:28]}  Rh7 {[%clk 0:00:07]} 40. Bb4 {[%clk 0:00:25]}  Nf5 {[%clk 0:00:07]} 41. Rxg6 {[%clk 0:00:23]}  Nxd4 {[%clk 0:00:06]} 42. Rd6+ {[%clk 0:00:22]}  Kc7 {[%clk 0:00:05]} 43. cxd5 {[%clk 0:00:20]}  Be7 {[%clk 0:00:05]} 44. Ba5+ {[%clk 0:00:19]}  b6 {[%clk 0:00:02]} 45. Rxc6+ {[%clk 0:00:19]}  Nxc6 {[%clk 0:00:01]} 46. Rxc6+ {[%clk 0:00:20]}  Kd7 {[%clk 0:00:01]} 47. Bxb6 {[%clk 0:00:19]} 1-0


[Site "https://www.chess.com"]

[Event "Titled Tuesday Blitz May 30 Late 2023"]
[White "Martic, Ivan"]
[Black "Sieciechowicz, Marcin"]
[WhiteFideId "929301"]
[BlackFideId "1130170"]
[WhiteElo "2360"]
[BlackElo "2302"]
[Result "1-0"]
[Round "08"]
[TimeControl "180+2"]
[Date "2023.05.31"]
[WhiteClock "0:00:15"]
[BlackClock "0:00:01"]

1. c4 {[%clk 0:03:00]}  c6 {[%clk 0:02:58]} 2. Nc3 {[%clk 0:02:59]}  d5 {[%clk 0:02:58]} 3. d4 {[%clk 0:03:00]}  Nf6 {[%clk 0:02:58]} 4. Nf3 {[%clk 0:02:58]}  e6 {[%clk 0:02:58]} 5. cxd5 {[%clk 0:02:57]}  exd5 {[%clk 0:02:58]} 6. Bg5 {[%clk 0:02:57]}  h6 {[%clk 0:02:59]} 7. Bh4 {[%clk 0:02:55]}  Bf5 {[%clk 0:02:58]} 8. Bxf6 {[%clk 0:02:51]}  Qxf6 {[%clk 0:02:58]} 9. e3 {[%clk 0:02:52]}  Bd6 {[%clk 0:02:57]} 10. Bd3 {[%clk 0:02:52]}  Bxd3 {[%clk 0:02:55]} 11. Qxd3 {[%clk 0:02:52]}  O-O {[%clk 0:02:56]} 12. O-O {[%clk 0:02:51]}  Nd7 {[%clk 0:02:56]} 13. Rab1 {[%clk 0:02:49]}  a5 {[%clk 0:02:54]} 14. Rfc1 {[%clk 0:02:39]}  Rfe8 {[%clk 0:02:54]} 15. a3 {[%clk 0:02:32]}  g5 {[%clk 0:02:54]} 16. Qd1 {[%clk 0:02:20]}  Kg7 {[%clk 0:02:47]} 17. g3 {[%clk 0:02:17]}  Nf8 {[%clk 0:02:38]} 18. Kg2 {[%clk 0:02:14]}  Ng6 {[%clk 0:02:33]} 19. Qd3 {[%clk 0:02:14]}  g4 {[%clk 0:02:27]} 20. Nd2 {[%clk 0:02:14]}  h5 {[%clk 0:02:26]} 21. e4 {[%clk 0:02:14]}  dxe4 {[%clk 0:01:50]} 22. Ndxe4 {[%clk 0:02:15]}  Qf5 {[%clk 0:01:50]} 23. Rd1 {[%clk 0:02:13]}  Bf8 {[%clk 0:01:39]} 24. f3 {[%clk 0:02:02]}  gxf3+ {[%clk 0:01:34]} 25. Qxf3 {[%clk 0:02:03]}  Qxf3+ {[%clk 0:01:35]} 26. Kxf3 {[%clk 0:02:03]}  Rad8 {[%clk 0:01:35]} 27. Rd2 {[%clk 0:01:57]}  c5 {[%clk 0:01:25]} 28. d5 {[%clk 0:01:52]}  Ne5+ {[%clk 0:01:25]} 29. Kg2 {[%clk 0:01:50]}  Nc4 {[%clk 0:01:25]} 30. Rf2 {[%clk 0:01:47]}  Nd6 {[%clk 0:01:20]} 31. Nf6 {[%clk 0:01:45]}  Re5 {[%clk 0:01:21]} 32. a4 {[%clk 0:01:32]}  Be7 {[%clk 0:01:19]} 33. Rbf1 {[%clk 0:01:31]}  c4 {[%clk 0:01:00]} 34. h4 {[%clk 0:01:27]}  b6 {[%clk 0:00:57]} 35. Kh3 {[%clk 0:01:27]}  Bxf6 {[%clk 0:00:34]} 36. Rxf6 {[%clk 0:01:26]}  Rd7 {[%clk 0:00:35]} 37. R6f2 {[%clk 0:01:16]}  f5 {[%clk 0:00:27]} 38. Ne2 {[%clk 0:01:09]}  Rxd5 {[%clk 0:00:22]} 39. Nf4 {[%clk 0:01:08]}  Re5 {[%clk 0:00:23]} 40. Nxh5+ {[%clk 0:01:07]}  Kh6 {[%clk 0:00:20]} 41. Nf4 {[%clk 0:01:08]}  Ne4 {[%clk 0:00:19]} 42. Rc2 {[%clk 0:01:05]}  Rc7 {[%clk 0:00:15]} 43. Rfc1 {[%clk 0:01:03]}  Nd6 {[%clk 0:00:15]} 44. Rd2 {[%clk 0:01:00]}  Ne4 {[%clk 0:00:15]} 45. Rd8 {[%clk 0:00:57]}  b5 {[%clk 0:00:15]} 46. axb5 {[%clk 0:00:54]}  Rxb5 {[%clk 0:00:16]} 47. Rh8+ {[%clk 0:00:49]}  Kg7 {[%clk 0:00:16]} 48. Ra8 {[%clk 0:00:49]}  Rc6 {[%clk 0:00:16]} 49. Ra7+ {[%clk 0:00:48]}  Kh6 {[%clk 0:00:15]} 50. Rc2 {[%clk 0:00:45]}  c3 {[%clk 0:00:15]} 51. bxc3 {[%clk 0:00:44]}  Rxc3 {[%clk 0:00:16]} 52. Ra6+ {[%clk 0:00:41]}  Kh7 {[%clk 0:00:14]} 53. Rxc3 {[%clk 0:00:36]}  Nxc3 {[%clk 0:00:15]} 54. Ne6 {[%clk 0:00:31]}  a4 {[%clk 0:00:12]} 55. Ng5+ {[%clk 0:00:32]}  Kg8 {[%clk 0:00:10]} 56. h5 {[%clk 0:00:32]}  Ne4 {[%clk 0:00:08]} 57. Ne6 {[%clk 0:00:26]}  Rb3 {[%clk 0:00:05]} 58. Ra7 {[%clk 0:00:20]}  Rxg3+ {[%clk 0:00:04]} 59. Kh2 {[%clk 0:00:21]}  Rg4 {[%clk 0:00:04]} 60. h6 {[%clk 0:00:15]}  Rh4+ {[%clk 0:00:04]} 61. Kg2 {[%clk 0:00:16]}  Rxh6 {[%clk 0:00:04]} 62. Nf4 {[%clk 0:00:16]}  Nc5 {[%clk 0:00:01]} 63. Ra5 {[%clk 0:00:15]} 1-0


[Site "https://www.chess.com"]

[Event "Titled Tuesday Blitz May 30 Late 2023"]
[White "Mortazavi, Ali"]
[Black "Bashirli, Nail"]
[WhiteFideId "401323"]
[BlackFideId "13406809"]
[WhiteElo "2339"]
[BlackElo "2311"]
[Result "0-1"]
[Round "08"]
[TimeControl "180+2"]
[Date "2023.05.31"]
[WhiteClock "0:00:10"]
[BlackClock "0:00:05"]

1. Nf3 {[%clk 0:02:59]}  c5 {[%clk 0:02:57]} 2. g3 {[%clk 0:02:59]}  b6 {[%clk 0:02:56]} 3. Bg2 {[%clk 0:03:00]}  Bb7 {[%clk 0:02:56]} 4. O-O {[%clk 0:03:00]}  g6 {[%clk 0:02:57]} 5. d3 {[%clk 0:03:01]}  Bg7 {[%clk 0:02:57]} 6. e4 {[%clk 0:03:02]}  d6 {[%clk 0:02:57]} 7. a4 {[%clk 0:03:01]}  Nc6 {[%clk 0:02:56]} 8. Re1 {[%clk 0:02:49]}  e6 {[%clk 0:02:56]} 9. c3 {[%clk 0:02:34]}  Nge7 {[%clk 0:02:56]} 10. d4 {[%clk 0:02:35]}  cxd4 {[%clk 0:02:56]} 11. cxd4 {[%clk 0:02:35]}  O-O {[%clk 0:02:57]} 12. Nc3 {[%clk 0:02:35]}  d5 {[%clk 0:02:52]} 13. e5 {[%clk 0:02:35]}  Rc8 {[%clk 0:02:49]} 14. Bf1 {[%clk 0:02:16]}  Nb4 {[%clk 0:02:45]} 15. h4 {[%clk 0:02:16]}  Nf5 {[%clk 0:02:39]} 16. h5 {[%clk 0:02:08]}  gxh5 {[%clk 0:02:35]} 17. Bh3 {[%clk 0:01:59]}  f6 {[%clk 0:02:15]} 18. Bxf5 {[%clk 0:01:46]}  exf5 {[%clk 0:02:16]} 19. e6 {[%clk 0:01:46]}  Re8 {[%clk 0:02:15]} 20. Nh4 {[%clk 0:01:42]}  Rc6 {[%clk 0:02:12]} 21. e7 {[%clk 0:01:13]}  Rxe7 {[%clk 0:01:55]} 22. Rxe7 {[%clk 0:01:12]}  Qxe7 {[%clk 0:01:56]} 23. Nxf5 {[%clk 0:01:13]}  Qe8 {[%clk 0:01:23]} 24. Qb3 {[%clk 0:01:00]}  a5 {[%clk 0:00:50]} 25. Bf4 {[%clk 0:00:41]}  Bf8 {[%clk 0:00:39]} 26. Nxd5 {[%clk 0:00:31]}  Nxd5 {[%clk 0:00:16]} 27. Qxd5+ {[%clk 0:00:31]}  Qe6 {[%clk 0:00:07]} 28. Qxe6+ {[%clk 0:00:24]}  Rxe6 {[%clk 0:00:08]} 29. Ne3 {[%clk 0:00:25]}  Re4 {[%clk 0:00:04]} 30. Rd1 {[%clk 0:00:19]}  h4 {[%clk 0:00:04]} 31. d5 {[%clk 0:00:18]}  hxg3 {[%clk 0:00:05]} 32. Bxg3 {[%clk 0:00:18]}  Bc8 {[%clk 0:00:05]} 33. d6 {[%clk 0:00:18]}  Bd7 {[%clk 0:00:05]} 34. Rc1 {[%clk 0:00:19]}  Kf7 {[%clk 0:00:06]} 35. Rc7 {[%clk 0:00:17]}  Ke6 {[%clk 0:00:06]} 36. Rb7 {[%clk 0:00:18]}  Rb4 {[%clk 0:00:05]} 37. Rb8 {[%clk 0:00:10]}  Bxd6 {[%clk 0:00:04]} 38. Bxd6 {[%clk 0:00:10]}  Kxd6 {[%clk 0:00:05]} 39. Rh8 {[%clk 0:00:09]}  Bxa4 {[%clk 0:00:04]} 40. Rxh7 {[%clk 0:00:08]}  Bb5 {[%clk 0:00:02]} 41. Nf5+ {[%clk 0:00:07]}  Ke6 {[%clk 0:00:02]} 42. Ng7+ {[%clk 0:00:07]}  Kd5 {[%clk 0:00:03]} 43. Rh5+ {[%clk 0:00:06]}  Kc4 {[%clk 0:00:04]} 44. Nf5 {[%clk 0:00:05]}  Rxb2 {[%clk 0:00:04]} 45. Kh2 {[%clk 0:00:06]}  Kc3 {[%clk 0:00:04]} 46. Ne3 {[%clk 0:00:05]}  Rxf2+ {[%clk 0:00:02]} 47. Kg3 {[%clk 0:00:05]}  Rb2 {[%clk 0:00:02]} 48. Nd1+ {[%clk 0:00:06]}  Kc2 {[%clk 0:00:03]} 49. Nxb2 {[%clk 0:00:06]}  Be2 {[%clk 0:00:03]} 50. Rb5 {[%clk 0:00:07]}  Bxb5 {[%clk 0:00:02]} 51. Nd1 {[%clk 0:00:08]}  Kxd1 {[%clk 0:00:02]} 52. Kf2 {[%clk 0:00:08]}  Kc2 {[%clk 0:00:03]} 53. Ke3 {[%clk 0:00:09]}  a4 {[%clk 0:00:04]} 54. Kd4 {[%clk 0:00:10]}  a3 {[%clk 0:00:05]} 0-1


[Site "https://www.chess.com"]

[Event "Titled Tuesday Blitz May 30 Late 2023"]
[White "Kourkoulos-Arditis, Stamatis"]
[Black "Dragomirescu, Robin-Alexandru"]
[WhiteFideId "4221990"]
[BlackFideId "1213849"]
[WhiteElo "2400"]
[BlackElo "2356"]
[Result "1-0"]
[Round "08"]
[TimeControl "180+2"]
[Date "2023.05.31"]
[WhiteClock "0:00:03"]
[BlackClock "0:00:02"]

1. d4 {[%clk 0:03:00]}  Nf6 {[%clk 0:02:59]} 2. Nc3 {[%clk 0:02:58]}  d5 {[%clk 0:02:59]} 3. Bf4 {[%clk 0:02:59]}  a6 {[%clk 0:02:52]} 4. e3 {[%clk 0:02:55]}  Bf5 {[%clk 0:02:44]} 5. Nf3 {[%clk 0:02:55]}  e6 {[%clk 0:02:42]} 6. Ne5 {[%clk 0:02:52]}  Nbd7 {[%clk 0:02:32]} 7. g4 {[%clk 0:02:45]}  Be4 {[%clk 0:02:03]} 8. f3 {[%clk 0:02:42]}  Bg6 {[%clk 0:01:53]} 9. h4 {[%clk 0:02:41]}  h6 {[%clk 0:01:42]} 10. Nxg6 {[%clk 0:02:40]}  fxg6 {[%clk 0:01:43]} 11. Bd3 {[%clk 0:02:39]}  Kf7 {[%clk 0:01:42]} 12. Qd2 {[%clk 0:02:20]}  c5 {[%clk 0:01:38]} 13. h5 {[%clk 0:02:06]}  g5 {[%clk 0:01:36]} 14. Bg3 {[%clk 0:02:05]}  Be7 {[%clk 0:01:28]} 15. Bg6+ {[%clk 0:02:03]}  Kg8 {[%clk 0:01:28]} 16. O-O-O {[%clk 0:02:03]}  b5 {[%clk 0:01:19]} 17. dxc5 {[%clk 0:01:56]}  b4 {[%clk 0:01:18]} 18. Ne2 {[%clk 0:01:48]}  Qa5 {[%clk 0:01:15]} 19. Kb1 {[%clk 0:01:48]}  Nxc5 {[%clk 0:01:15]} 20. Nd4 {[%clk 0:01:47]}  Qb6 {[%clk 0:01:08]} 21. Nb3 {[%clk 0:01:07]}  a5 {[%clk 0:01:03]} 22. Nxc5 {[%clk 0:01:01]}  Bxc5 {[%clk 0:01:04]} 23. e4 {[%clk 0:01:02]}  d4 {[%clk 0:00:40]} 24. Be5 {[%clk 0:01:01]}  Rd8 {[%clk 0:00:41]} 25. Qd3 {[%clk 0:00:50]}  Kf8 {[%clk 0:00:39]} 26. f4 {[%clk 0:00:31]}  Ke7 {[%clk 0:00:38]} 27. fxg5 {[%clk 0:00:30]}  hxg5 {[%clk 0:00:39]} 28. Rdf1 {[%clk 0:00:22]}  Bd6 {[%clk 0:00:23]} 29. Bxd4 {[%clk 0:00:19]}  Bc5 {[%clk 0:00:23]} 30. Bxc5+ {[%clk 0:00:19]}  Qxc5 {[%clk 0:00:24]} 31. Qa6 {[%clk 0:00:18]}  Rd6 {[%clk 0:00:22]} 32. Qe2 {[%clk 0:00:12]}  Qe5 {[%clk 0:00:18]} 33. Qc4 {[%clk 0:00:12]}  Rhd8 {[%clk 0:00:17]} 34. Rc1 {[%clk 0:00:03]}  Nxg4 {[%clk 0:00:15]} 35. Rhf1 {[%clk 0:00:04]}  Nf6 {[%clk 0:00:15]} 36. Qc7+ {[%clk 0:00:04]}  R8d7 {[%clk 0:00:13]} 37. Qb8 {[%clk 0:00:05]}  g4 {[%clk 0:00:09]} 38. Qh8 {[%clk 0:00:04]}  Nxe4 {[%clk 0:00:02]} 39. Qf8# {[%clk 0:00:03]} 1-0


[Site "https://www.chess.com"]